Cogmind - Beta 10.2 @@@ ROGUE MODE // 2022.02.19 @ 23:08:45 // Winter2019/RPGLIKE Player: Wayward Satellite Result: Destroyed by D-53 Grenadier with Mini Grenade Launcher Performance ------------- Evolutions (0) 0 Regions Visited (4) 800 Robots Destroyed (23) 115 Value Destroyed (442) 442 Prototype IDs (0) 0 Alien Tech Used (0) 0 Bonus (124) 124 TOTAL SCORE: 1481 Bonus ------- Follower Combat Kills 124 Cogmind --------- Core Integrity 0/600 Matter 235/300 Energy 160/160 System Corruption 0% Temperature Cool (0) Movement Treading (160) Location -9/Mines Parts ------- > --- POWER (1) -------- Light Nuclear Core > --- PROPULSION (2) --- Light Treads Light Treads > --- UTILITY (3) ------ Sensor Array High-powered Tractor Beam > --- WEAPON (2) ------- Assault Rifle Bore Cannon > --- INVENTORY (3) ---- Medium Battery (200) High-capacity Matter Pod (200) Grenade Launcher Peak State ------------ > --- POWER ------------ Light Nuclear Core > --- PROPULSION ------- Light Treads Light Treads > --- UTILITY ---------- Sensor Array Light Armor Plating High-powered Tractor Beam > --- WEAPON ----------- Assault Rifle Bore Cannon > --- INVENTORY -------- Medium Battery High-capacity Matter Pod Grenade Launcher [Rating: 15] Favorites ----------- Power Light Nuclear Core Engine Improved Ion Engine Power Core Light Nuclear Core Propulsion Light Treads Treads Light Treads Utility Sensor Array Device Sensor Array Processor Seismic Analyzer Protection Light Armor Plating Weapon Light Assault Rifle Ballistic Gun Light Assault Rifle Ballistic Cannon Bore Cannon Launcher Grenade Launcher Build | -11 -10 -10 -10 -9 ------- Run | Scr Mat Min Exi Min Slots Evolved 4 | 3 1 . . . Power . | . . . . . Propulsion 1 | 1 . . . . Utility 2 | 1 1 . . . Weapon 1 | 1 . . . . Parts Attached 17 | 7 7 . . 3 Power 3 | 1 2 . . . Engine 2 | 1 1 . . . Core 1 | . 1 . . . Reactor . | . . . . . Propulsion 2 | 2 . . . . Treads 2 | 2 . . . . Leg . | . . . . . Wheel . | . . . . . Hover . | . . . . . Flight . | . . . . . Utility 6 | 2 4 . . . Device 4 | 1 3 . . . Storage . | . . . . . Processor 1 | 1 . . . . Hackware . | . . . . . Protection 1 | . 1 . . . Artifact . | . . . . . Weapon 6 | 2 1 . . 3 Energy Gun . | . . . . . Energy Cannon . | . . . . . Ballistic Gun 4 | 2 1 . . 1 Ballistic Cannon 1 | . . . . 1 Launcher 1 | . . . . 1 Special Weapon . | . . . . . Impact Weapon . | . . . . . Slashing Weapon . | . . . . . Piercing Weapon . | . . . . . Special Melee Weapon . | . . . . . Unidentified Prototypes . | . . . . . Parts Lost 1 | . . . . 1 Power . | . . . . . Propulsion . | . . . . . Utility 1 | . . . . 1 Weapon . | . . . . . Highest Loss Streak 1 | . . . . 1 Average Slot Usage (%) 99 | . 100 100 100 99 Engine 1 | . 3 . . . Core 11 | . 10 12 12 12 Treads 25 | . 27 25 25 25 Device 24 | . 22 25 25 25 Protection 10 | . 5 12 12 11 Ballistic Gun 25 | . 27 25 25 17 Naked Turns . | . . . . . Heaviest Build 21 | 8 13 13 13 21 Greatest Support 45 | 45 45 45 45 45 Greatest Overweight (x) . | . . . . . Average Overweight (x) . | . . . . . Largest Inventory Capacity 3 | 2 2 3 3 3 Average Capacity 2 | 2 2 2 3 3 Most Carried 3 | 2 2 2 3 3 Average Carried 2 | 1 1 2 2 3 Final Capacity 3 | 2 2 3 3 3 Final Carried 3 | 2 2 2 3 3 Class Distribution -------------------- 100% | Mutant Dominant Class ---------------- Mutant | -10/Materials Mutant | -10/Mines Mutant | -10/Exiles Mutant | -9/Mines Resources | -11 -10 -10 -10 -9 ----------- Run | Scr Mat Min Exi Min Matter Collected 854 | 284 403 41 . 126 Remotely 527 | . 360 41 . 126 Salvage Created 916 | 95 610 127 . 84 Parts 53 | 5 39 9 . . Haulers Intercepted 2 | . 2 . . . Recyclers Shooed 1 | . 1 . . . Parts Field Recycled . | . . . . . Retrieved Matter . | . . . . . Parts Self-Destructed . | . . . . . Prevented . | . . . . . Kills | -11 -10 -10 -10 -9 ------- Run | Scr Mat Min Exi Min Combat Hostiles Destroyed 21 | . 14 1 . 6 Guns 20 | . 14 1 . 5 Cannons 1 | . . . . 1 Classes Destroyed 8 | 2 3 1 . 2 Builder 1 | . . 1 . . Tunneler 1 | 1 . . . . Hauler 2 | . 2 . . . Recycler 3 | 1 1 1 . . Swarmer 7 | . 6 1 . . Grunt 8 | . 8 . . . Demolisher 1 | . . . . 1 Assembled 5 | . . . . 5 Best Kill Streak 5 | 1 5 1 . 5 Combat Bots Only 5 | . 4 1 . 5 Max Kills in Single Turn 2 | 1 2 1 . 1 Gunslinging 1 | . 1 . . . Exploded . | . . . . . Melee . | . . . . . Uniques/NPCs Destroyed . | . . . . . Combat | -11 -10 -10 -10 -9 -------- Run | Scr Mat Min Exi Min Damage Taken 1228 | . 344 61 . 823 Core 923 | . 274 43 . 606 Absorbed by Shields . | . . . . . Redirected to Core 767 | . 195 43 . 529 Core Remaining (%) 100 | 100 . . . . Volleys Fired 81 | 7 42 10 . 22 Largest 2 | 2 2 2 . 2 Hottest 77 | 40 40 40 . 77 Shots Fired 158 | 14 84 20 . 40 Gun 145 | 14 84 20 . 27 Cannon 9 | . . . . 9 Launcher 4 | . . . . 4 Special . | . . . . . Kinetic 154 | 14 84 20 . 36 Thermal . | . . . . . Explosive 4 | . . . . 4 Electromagnetic . | . . . . . Robot Hit Streak 17 | 8 17 11 . 12 Robot Miss Streak 3 | 2 1 3 . 1 Penetration Max . | . . . . . Secondary Targets 5 | . 4 . . 1 Max Gunslinging Chain 1 | . 1 . . 1 Shots Hit Robots 124 | 11 71 14 . 28 Core Hits 51 | 3 29 7 . 12 Critical Hits 8 | . 2 . . 6 Critical Kills 2 | . 1 . . 1 Critical Parts Destroyed 3 | . 1 . . 2 Melee Attacks . | . . . . . Impact . | . . . . . Slashing . | . . . . . Piercing . | . . . . . Sneak Attacks . | . . . . . Combat Hostiles . | . . . . . Follow-up Attacks . | . . . . . Damage Inflicted 1406 | 85 758 176 . 387 Guns 1181 | 85 734 157 . 205 Cannons 182 | . . . . 182 Explosions . | . . . . . Melee . | . . . . . Ramming 43 | . 24 19 . . Kinetic 1363 | 85 734 157 . 387 Thermal . | . . . . . Explosive . | . . . . . Electromagnetic . | . . . . . Impact . | . . . . . Slashing . | . . . . . Piercing . | . . . . . Highest Corruption . | . . . . . Average Corruption . | . . . . . Corruption Purged . | . . . . . Overload Shots . | . . . . . Overflow Damage . | . . . . . Projectiles . | . . . . . Explosions . | . . . . . Melee . | . . . . . Knockbacks 3 | . . . . 3 Impact . | . . . . . Kinetic 3 | . . . . 3 Secondary . | . . . . . Self-Inflicted Damage 2 | . . . . 2 Shots 1 | . . . . 1 Rammed 18 | . 9 9 . . Targets Rammed 18 | . 9 9 . . Kicked . | . . . . . Crushed . | . . . . . Highest Temperature 7 | . . . . 7 Average Temperature 7 | . . . . 7 Received Heat Transfer 201 | . 141 . . 60 Siege Activations . | . . . . . Robots Corrupted . | . . . . . Combat Hostiles . | . . . . . Parts Fried . | . . . . . Impact Corruptions . | . . . . . Robots Melted . | . . . . . Combat Hostiles . | . . . . . Parts Melted . | . . . . . Heat Transferred . | . . . . . Parts Sabotaged . | . . . . . Parts Stolen . | . . . . . Parts Stripped . | . . . . . Power Chain Reactions . | . . . . . Missiles Intercepted . | . . . . . Alert | -11 -10 -10 -10 -9 ------- Run | Scr Mat Min Exi Min Peak Influence 237 | 10 234 237 . 60 Initial 19 | . 6 19 . . Average 68 | 4 100 59 . 17 Maximum Alert Level 1 | . 1 1 . . Low Security (%) 92 | 100 87 93 . 100 Level 1 7 | . 12 6 . . Level 2 . | . . . . . Level 3 . | . . . . . Level 4 . | . . . . . Level 5 . | . . . . . High Security . | . . . . . Max Security . | . . . . . Squads Dispatched 3 | . 2 1 . . Investigation 1 | . 1 . . . Extermination . | . . . . . Reinforcement 1 | . 1 . . . Assault 1 | . . 1 . . Garrison . | . . . . . Intercept . | . . . . . Construction Impeded . | . . . . . Haulers Reinforced . | . . . . . Stealth | -11 -10 -10 -10 -9 --------- Run | Scr Mat Min Exi Min Distress Signals . | . . . . . Communications Jammed . | . . . . . Distress Signals . | . . . . . Times Spotted 41 | . 18 10 . 13 Peak Tracking Total 6 | . 4 4 . 6 Tactical Retreats 3 | . . 1 . 2 Traps | -11 -10 -10 -10 -9 ------- Run | Scr Mat Min Exi Min Traps Triggered 1 | . 1 . . . Indirectly . | . . . . . Trap Hack Attempts . | . . . . . Triggered . | . . . . . Disarmed . | . . . . . Reprogrammed . | . . . . . Reused . | . . . . . Traps Extracted . | . . . . . Installed . | . . . . . Triggered . | . . . . . Machines | -11 -10 -10 -10 -9 ---------- Run | Scr Mat Min Exi Min Machines Disabled . | . . . . . Max in Single Turn . | . . . . . Machines Sabotaged . | . . . . . Garrisons Compromised . | . . . . . Overloaded Fab Kills . | . . . . . Fab Network Shutdowns . | . . . . . Hacking | -11 -10 -10 -10 -9 --------- Run | Scr Mat Min Exi Min Machines Accessed 8 | . 7 . 1 . Terminals 6 | . 6 . . . Fabricators . | . . . . . Repair Stations . | . . . . . Recycling Units 1 | . 1 . . . Scanalyzers . | . . . . . Garrison Access . | . . . . . Total Hacks 27 | . 26 . 1 . Successful 19 | . 18 . 1 . Failed 7 | . 7 . . . Catastrophic . | . . . . . Database Lockouts 1 | . 1 . . . Manual 14 | . 14 . . . Terminals 23 | . 23 . . . Fabricators . | . . . . . Repair Stations . | . . . . . Recycling Units 3 | . 3 . . . Scanalyzers . | . . . . . Garrison Access . | . . . . . Terminal Hacks 12 | . 11 . 1 . Record 2 | . 1 . 1 . Robot Analysis 2 | . 2 . . . Branch Access Points 1 | . 1 . . . Emergency Access Points 1 | . 1 . . . Alert Level 1 | . 1 . . . Unreport Threat 1 | . 1 . . . Locate Traps 1 | . 1 . . . Surveillance Status 1 | . 1 . . . Transport Status 1 | . 1 . . . Zone Layout 1 | . 1 . . . Fabricator Hacks . | . . . . . Repair Station Hacks . | . . . . . Recycling Unit Hacks 1 | . 1 . . . Report Inventory 1 | . 1 . . . Scanalyzer . | . . . . . Garrison Access Hacks . | . . . . . Unauthorized Hacks 6 | . 6 . . . Terminals 5 | . 5 . . . Assimilate 1 | . 1 . . . Botnet 3 | . 3 . . . Operators 1 | . 1 . . . Fabricators . | . . . . . Repair Stations . | . . . . . Recycling Units 1 | . 1 . . . Mask 1 | . 1 . . . Scanalyzers . | . . . . . Garrison Access . | . . . . . Data Cores Recovered . | . . . . . Used . | . . . . . Hacking Detections 7 | . 7 . . . Full Trace Events 1 | . 1 . . . Feedback Events . | . . . . . Feedback Blocked . | . . . . . Robot Schematics Acquired . | . . . . . Robots Built . | . . . . . Matter . | . . . . . Time . | . . . . . Total Robot Build Rating . | . . . . . Part Schematics Acquired . | . . . . . Parts Built . | . . . . . Matter . | . . . . . Time . | . . . . . Total Part Build Rating . | . . . . . Parts Repaired . | . . . . . Time . | . . . . . Parts Recycled . | . . . . . Recycled Matter . | . . . . . Retrieved Matter . | . . . . . Retrieved Components . | . . . . . Parts Scanalyzed . | . . . . . Part Schematics Acquired . | . . . . . Parts Damaged . | . . . . . Bothacking | -11 -10 -10 -10 -9 ------------ Run | Scr Mat Min Exi Min Used RIF Installer . | . . . . . Robots Hacked . | . . . . . Non-combat . | . . . . . Combat . | . . . . . Robot Hacks Applied . | . . . . . Relay Couplers Released . | . . . . . Robots Rewired . | . . . . . Allies Hacked . | . . . . . Hacks Repelled . | . . . . . Allies | -11 -10 -10 -10 -9 -------- Run | Scr Mat Min Exi Min Total Allies 4 | . . 4 . . Largest Group 4 | . . 4 2 2 Highest-Rated Group 71 | . . 71 34 34 Highest-Rated Ally 31 | . . 31 26 26 Total Orders . | . . . . . Ally Attacks 26 | . . 26 . . Total Damage 355 | . . 355 . . Kills 6 | . . 6 . . Allies Corrupted . | . . . . . Allies Melted . | . . . . . Intel | -11 -10 -10 -10 -9 ------- Run | Scr Mat Min Exi Min Robot Analysis Total 2 | . 2 . . . Derelict Logs Recovered 1 | . . 1 . . Drone Launches . | . . . . . Drone Recoveries . | . . . . . Exploration | -11 -10 -10 -10 -9 ------------- Run | Scr Mat Min Exi Min Turns Passed 2719 | 87 787 1285 408 152 Spaces Moved 1470 | 42 353 770 253 52 Core 9 | 9 . . . . Treads 1461 | 33 353 770 253 52 Legs . | . . . . . Wheels . | . . . . . Hover . | . . . . . Flight . | . . . . . Fastest Speed 50 | 50 160 160 160 160 Average Speed 159 | 136 160 160 160 160 Slowest Speed 160 | 160 160 160 160 160 Overloaded Moves . | . . . . . Propulsion Burnouts . | . . . . . Robots Hopped . | . . . . . Cave-ins Triggered . | . . . . . Exploration Rate (%) 49 | 3 64 97 69 16 Regions Visited 4 Branch Regions 3 Pre-discovered Areas . | . . . . . Known Exits Taken 1 | . 1 . . . Unknown Exits Taken 3 | 1 . 1 1 . Scrap Searched 1 | . . 1 . . Spaces Dug 26 | . . . . 26 Terrain Destroyed 32 | . . . . 32 Melee . | . . . . . Projectile 6 | . . . . 6 AOE 26 | . . . . 26 Terrain Rammed . | . . . . . Walls Destroyed . | . . . . . Machines Disabled . | . . . . . Actions | -11 -10 -10 -10 -9 --------- Run | Scr Mat Min Exi Min Total 1692 | 57 497 800 256 82 Wait 76 | . 60 9 3 4 Move 1466 | 41 352 769 252 52 Hop . | . . . . . Pick Up 7 | 2 4 . 1 . Fast Attach 11 | 7 3 . . 1 Attach 1 | . 1 . . . Detach . | . . . . . Swap 5 | . 3 . . 2 Drop 8 | . 7 . . 1 Fire 81 | 7 42 10 . 22 Melee . | . . . . . Ram . | . . . . . Kick . | . . . . . Crush 18 | . 9 9 . . Escape Stasis . | . . . . . Rewire . | . . . . . Trap . | . . . . . Miscellaneous 19 | . 16 3 . . Route ------- -11/Scrapyard -10/Materials (discovered 3 exits: [*Mat] / *Min x2) -10/Mines (discovered 3 exits: [*Mat x2] / *Exi) -10/Exiles -9/Mines History --------- Turn | Location | Event 1 | -11/Scrapyard | Upgraded with Propulsion slot (x1) 1 | -11/Scrapyard | Upgraded with Utility slot (x1) 1 | -11/Scrapyard | Upgraded with Weapon slot (x1) 14 | -11/Scrapyard | Discovered new exit (range 15) 88 | -11/Scrapyard | Entered Materials 312 | -10/Materials | Build established: Mutant 439 | -10/Materials | Identified exit to Mines 547 | -10/Materials | Discovered new exit (range 10) 748 | -10/Materials | Reached level 2 769 | -10/Materials | Upgraded with Utility slot (x1) 801 | -10/Materials | Central database locked down 875 | -10/Materials | Entered Mines 991 | -10/Mines | Deemed a non-threat by the Exiles lab entrance 991 | -10/Mines | Discovered new exit (range 5) 1424 | -10/Mines | Assisted by bots powering up and referring to "LRC-V3" 1483 | -10/Mines | Discovered new exit (range 5) 1708 | -10/Mines | Met a Derelict testing a Signal Generator 1761 | -10/Mines | Reached level 3 1973 | -10/Mines | Discovered new exit (range 5) 2160 | -10/Mines | Entered Exiles 2160 | -10/Exiles | Found Exiles lab abandoned 2160 | -10/Exiles | Accompanied by 2 allies 2552 | -10/Exiles | Discovered new exit (range 10) 2568 | -10/Exiles | Entered Mines 2568 | -9/Mines | Accompanied by 2 allies 2569 | -9/Mines | Assembled infested the area 2574 | -9/Mines | Assisted by a Guerilla fighting off Assembled 2702 | -9/Mines | Core integrity fell below 50% 2712 | -9/Mines | Core integrity fell below 20% 2720 | -9/Mines | Destroyed by D-53 Grenadier with Mini Grenade Launcher Last Messages --------------- 02681_ Acquired 22 matter. 02691_ as-89005 destroyed. 02700_ HV Slug penetrates D-53 Grenadier. 02703_ D-53 Grenadier destroyed. 02704_ The unstable cave ceiling collapses. 02706_ HV Slug penetrates D-53 Grenadier. 02706_ D-53 Grenadier suffers critical hit. 02706_ HV Slug penetrates Wall. 02709_ The unstable cave ceiling collapses. 02709_ D-53 Grenadier suffers critical hit. 02711_ The unstable cave ceiling collapses. 02712_ HV Slug penetrates Earth. 02714_ The unstable cave ceiling collapses. 02715_ D-53 Grenadier suffers critical hit. 02715_ Destroyed Lgt. Deuterium Engine. 02715_ D-53 Grenadier knocked back. 02716_ Lgt. Armor Plating destroyed. 02717_ The unstable cave ceiling collapses. 02718_ D-53 Grenadier suffers critical hit. 02718_ D-53 Grenadier knocked back. Map ----- +----------------------------------------------------+ | ??????????????????????????????????????? | | ??????????????????????????????????????? | | ??????????????????????????????????????? | | ??????????????????????????????????????? | | ??????????????????????????????????????? | | ??????????????????????????????????????? | | ??????????????????????????????????????? | | ??????????????????????????????????????? | | ??????????????????????????????????????? | | ??????????????????????????????????????? | | ??????????????????????? ?? ??????????? | | ????????????????????? # ??????????? | | ????????????????????## ????????? | | ????????????????????# ?????????? | | ????????????????????# ??????????? | | ????????????????????? #??????????? | | ?????????????????##?? #??????????? | | ????????????????## ### % ##?????????? | | ????????????????# # # # #?????????? | | ????????????????# $ #?????????? | | ????????????# ### #?????????? | | ?????????????? ##????????? | | ????????????????# ##???????? | | ?????????????????# #???????? | | ????????????????## < #?####??? | | ??????????????# ; d @ ###""#??? | | ???????????#; ; ! #??? | | ????????????# ### ### ####[#??? | | ????????????????????## ##??# #??? | | ?????????????????????## ##???# #??? | | ??????????????????????#######????# #??? | | ?????????????????????????????????# #??? | | ????????????????????????########## ##?? | | ????????????????????????# #?? | | ????????????????????????# #?? | | ????????????????????????# #?? | | ??????????????# # # #?? | | ????????????????????# #?? | | ????????????????????# #?? | | ????????????????????# = #?? | | ????????????????????# #?? | | ????????????????????# #?? | | ????????????????????## # #?? | | ?????????????????????## """ """ #?? | | ??????????????????????### """ """ #?? | | ????????????????????????# """ """ #?? | | ????????????????????????# #?? | | ????????????????????????#???###??####?? | | ??????????????????????????????????????? | | ??????????????????????????????????????? | +----------------------------------------------------+ Best States ------------- Heat Dissipation 43 Energy Generation 14 Energy Capacity 265 Matter Stores 300 Matter Capacity 300 Sight Range 16 Robot Scan Range 22 Terrain Scan Range 16 Terrain Scan Density 60 Armor Coverage 150 Evasion (%) 50 Recoil Reduction 2 Offensive Hacking 5 Item Schematics ----------------- None Robot Schematics ------------------ None Fabricated ------------ Nothing Alien Tech Used ----------------- None Achievements -------------- None Challenges ------------ None RPGLIKE | -11 -10 -10 -10 -9 --------- Run | Scr Mat Min Exi Min Levels Raised 2 | . 1 1 . . XP Earned 7409 | 3000 1785 1774 200 650 XP Spent 5885 | 2960 1475 1450 . . Upgrades 20 | 10 7 3 . . Propulsion Slot 1 | 1 . . . . Utility Slot 2 | 1 1 . . . Weapon Slot 1 | 1 . . . . Heat Dissipation 3 | 3 . . . . Mass Support 1 | 1 . . . . Inventory Capacity 3 | 2 . 1 . . Sensor Range 6 | . 6 . . . Ranged Accuracy 2 | 1 . 1 . . Hack Attack % 1 | . . 1 . . Protomatter Created 121 | . 121 . . . Integrity Restored 374 | . 331 43 . . Core 317 | . 274 43 . . Parts 57 | . 57 . . . Protomatter Decayed 215 | . 8 117 . 90 Game ------ Seed ThrusterCatalystMaul Manual? 0 Play Time 00:42:24 Cumulative 50.8 hours Start 2022.02.19 @ 11:35:12 End 2022.02.19 @ 23:08:45 Sessions 3 Manual Loads 0 Difficulty Rogue Special Mode Winter2019/RPGLIKE Game No. 21 Rogue 21 Adventurer 0 Explorer 0 Win Type - Total 2 Types 2/0/0/0/0/0/0/0/0 Lore% 42 Gallery% 38 Achievement% 34 Wizard Run 0 Options --------- ASCII 0 Keyboard 0 Movement Numpad Keybinds 0 Fullscreen 1 Font 18/SmallcapsGlow Map View 76x50 Tactical HUD 1 Map Filters NONE Filters NONE Steam 1 RUN: 22843f97-9b61-4dcc-81e5-a8db0e880040